[Event "*** SCC Grand Prix: Titled Tuesday Blitz"]
[Site "Chess.com"]
[Date "2020.10.06"]
[Round "2"]
[White "AungTZ"]
[Black "Loy_Konstantin"]
[Result "1-0"]
[WhiteElo "2156"]
[BlackElo "2378"]
[TimeControl "180+1"]
[EndTime "10:18:16 PDT"]
[Termination "AungTZ won by resignation"]

1. e4 {[%clk 0:03:00.9]} 1... c5 {[%clk 0:02:58.8]} 2. Nf3 {[%clk 0:02:58.8]}
2... d6 {[%clk 0:02:58.7]} 3. Bb5+ {[%clk 0:02:57]} 3... Nd7 {[%clk 0:02:56.1]}
4. O-O {[%clk 0:02:54.7]} 4... a6 {[%clk 0:02:54.8]} 5. Bxd7+ {[%clk 0:02:54]}
5... Bxd7 {[%clk 0:02:54.4]} 6. c3 {[%clk 0:02:52.5]} 6... Nf6 {[%clk
0:02:53.8]} 7. Re1 {[%clk 0:02:52]} 7... Bc6 {[%clk 0:02:51.6]} 8. d4 {[%clk
0:02:51.1]} 8... Bxe4 {[%clk 0:02:09.8]} 9. Bg5 {[%clk 0:02:48.2]} 9... Bc6
{[%clk 0:02:04.7]} 10. Bxf6 {[%clk 0:02:45.1]} 10... gxf6 {[%clk 0:02:04.4]} 11.
Nbd2 {[%clk 0:02:39.9]} 11... cxd4 {[%clk 0:02:02.2]} 12. Nxd4 {[%clk
0:02:38.2]} 12... e6 {[%clk 0:01:50.7]} 13. Qh5 {[%clk 0:02:16.5]} 13... e5
{[%clk 0:01:19.3]} 14. Rad1 {[%clk 0:01:55.7]} 14... Be7 {[%clk 0:01:16.3]} 15.
Nf5 {[%clk 0:01:48.2]} 15... Qd7 {[%clk 0:00:57.3]} 16. Ne4 {[%clk 0:01:36.8]}
16... Bxe4 {[%clk 0:00:49]} 17. Rxe4 {[%clk 0:01:35.6]} 17... O-O-O {[%clk
0:00:49.5]} 18. Rc4+ {[%clk 0:01:14.6]} 18... Kb8 {[%clk 0:00:48.8]} 19. Ne3
{[%clk 0:01:14.5]} 19... Rc8 {[%clk 0:00:31.8]} 20. Rxc8+ {[%clk 0:01:01.2]}
20... Rxc8 {[%clk 0:00:32.2]} 21. Qxf7 {[%clk 0:01:01]} 21... Qe8 {[%clk
0:00:23.1]} 22. Qxh7 {[%clk 0:00:54.5]} 22... Bd8 {[%clk 0:00:22.3]} 23. Rxd6
{[%clk 0:00:27.5]} 23... Qb5 {[%clk 0:00:19.9]} 24. Rd2 {[%clk 0:00:19.9]} 24...
Bb6 {[%clk 0:00:18.4]} 25. Qd3 {[%clk 0:00:19]} 25... Rd8 {[%clk 0:00:17.8]} 26.
Qxb5 {[%clk 0:00:16.6]} 26... axb5 {[%clk 0:00:18.1]} 27. Rxd8+ {[%clk
0:00:16.6]} 27... Bxd8 {[%clk 0:00:19]} 28. h4 {[%clk 0:00:16]} 28... Be7 {[%clk
0:00:18.7]} 29. g4 {[%clk 0:00:15.9]} 29... Kc7 {[%clk 0:00:18.6]} 30. Nf5
{[%clk 0:00:15.7]} 30... Bf8 {[%clk 0:00:18.4]} 31. Kg2 {[%clk 0:00:16.2]} 31...
Kd7 {[%clk 0:00:17.9]} 32. Kf3 {[%clk 0:00:14.8]} 32... Ke6 {[%clk 0:00:16.9]}
33. Ke4 {[%clk 0:00:14.9]} 33... b4 {[%clk 0:00:17.5]} 34. cxb4 {[%clk
0:00:13.8]} 34... Bxb4 {[%clk 0:00:17.2]} 35. f4 {[%clk 0:00:13.1]} 35... exf4
{[%clk 0:00:16.7]} 36. Kxf4 {[%clk 0:00:13.3]} 36... Bd2+ {[%clk 0:00:17.6]} 37.
Ke4 {[%clk 0:00:13.1]} 37... Bc1 {[%clk 0:00:17.3]} 38. b4 {[%clk 0:00:12.1]}
38... Ba3 {[%clk 0:00:16.5]} 39. b5 {[%clk 0:00:11.8]} 39... Kf7 {[%clk
0:00:16]} 40. h5 {[%clk 0:00:11.6]} 40... Bf8 {[%clk 0:00:13.8]} 41. Kd5 {[%clk
0:00:11.5]} 41... Ba3 {[%clk 0:00:13.9]} 42. Nd6+ {[%clk 0:00:11.3]} 42... Kg7
{[%clk 0:00:14.5]} 43. Nxb7 {[%clk 0:00:10.9]} 43... Kh6 {[%clk 0:00:15.1]} 44.
Nc5 {[%clk 0:00:10.7]} 44... Bb2 {[%clk 0:00:13.1]} 45. b6 {[%clk 0:00:10.5]}
45... Be5 {[%clk 0:00:13.7]} 46. b7 {[%clk 0:00:10.5]} 46... Kg5 {[%clk
0:00:13.5]} 47. Nd7 {[%clk 0:00:10.6]} 47... Bc7 {[%clk 0:00:13.7]} 48. b8=Q
{[%clk 0:00:07.8]} 48... Bxb8 {[%clk 0:00:13.9]} 49. Nxb8 {[%clk 0:00:08]} 49...
Kxg4 {[%clk 0:00:14.2]} 50. h6 {[%clk 0:00:08.2]} 1-0

[Event "*** SCC Grand Prix: Titled Tuesday Blitz"]
[Site "Chess.com"]
[Date "2020.10.06"]
[Round "2"]
[White "swimmerchess"]
[Black "Sanyura"]
[Result "1-0"]
[WhiteElo "2812"]
[BlackElo "2549"]
[TimeControl "180+1"]
[EndTime "10:18:18 PDT"]
[Termination "swimmerchess won on time"]

1. e4 {[%clk 0:03:00]} 1... c6 {[%clk 0:02:55.9]} 2. d4 {[%clk 0:03:00]} 2... d5
{[%clk 0:02:55.9]} 3. e5 {[%clk 0:02:59.9]} 3... Bf5 {[%clk 0:02:55.6]} 4. c4
{[%clk 0:03:00]} 4... e6 {[%clk 0:02:54]} 5. Nc3 {[%clk 0:02:59.8]} 5... Ne7
{[%clk 0:02:49.9]} 6. Nge2 {[%clk 0:02:59.3]} 6... Nd7 {[%clk 0:02:43.2]} 7. Nf4
{[%clk 0:02:59.1]} 7... Qc7 {[%clk 0:02:25.9]} 8. g4 {[%clk 0:02:57.5]} 8... Bg6
{[%clk 0:02:25.1]} 9. h4 {[%clk 0:02:57.2]} 9... h6 {[%clk 0:02:23.8]} 10. Nxg6
{[%clk 0:02:52]} 10... Nxg6 {[%clk 0:02:22.1]} 11. h5 {[%clk 0:02:52.6]} 11...
Ne7 {[%clk 0:02:21.5]} 12. f4 {[%clk 0:02:52.9]} 12... dxc4 {[%clk 0:02:21.7]}
13. Bxc4 {[%clk 0:02:53]} 13... Nd5 {[%clk 0:02:22.3]} 14. Qf3 {[%clk
0:02:50.5]} 14... O-O-O {[%clk 0:02:20.4]} 15. Bd2 {[%clk 0:02:49.1]} 15... N7b6
{[%clk 0:02:14.2]} 16. Bb3 {[%clk 0:02:48.8]} 16... Kb8 {[%clk 0:02:09.3]} 17.
f5 {[%clk 0:02:36]} 17... c5 {[%clk 0:02:01.5]} 18. Nxd5 {[%clk 0:02:26.4]}
18... Nxd5 {[%clk 0:02:01.3]} 19. Rc1 {[%clk 0:02:21.6]} 19... Qb6 {[%clk
0:01:58.1]} 20. a4 {[%clk 0:02:01.5]} 20... cxd4 {[%clk 0:01:47.7]} 21. a5
{[%clk 0:01:53.3]} 21... Qb5 {[%clk 0:01:47.3]} 22. Bc4 {[%clk 0:01:33.2]} 22...
Qxb2 {[%clk 0:01:46.8]} 23. fxe6 {[%clk 0:01:12.7]} 23... fxe6 {[%clk
0:01:42.8]} 24. Qb3 {[%clk 0:00:17.8]} 24... Qxb3 {[%clk 0:00:54.7]} 25. Bxb3
{[%clk 0:00:18.7]} 25... d3 {[%clk 0:00:54.1]} 26. O-O {[%clk 0:00:14.2]} 26...
Ba3 {[%clk 0:00:50]} 27. Rc4 {[%clk 0:00:09.7]} 27... Rhf8 {[%clk 0:00:46.7]}
28. Rb1 {[%clk 0:00:09.9]} 28... b6 {[%clk 0:00:12.3]} 29. axb6 {[%clk
0:00:05.2]} 29... Nxb6 {[%clk 0:00:13.2]} 30. Ba2 {[%clk 0:00:04.3]} 30... Ka8
{[%clk 0:00:12.2]} 31. Rc6 {[%clk 0:00:04]} 31... Rc8 {[%clk 0:00:12]} 32. Rxe6
{[%clk 0:00:03.8]} 32... Rc2 {[%clk 0:00:11.6]} 33. Rexb6 {[%clk 0:00:03.4]}
33... axb6 {[%clk 0:00:10.6]} 34. Bd5+ {[%clk 0:00:03.9]} 34... Ka7 {[%clk
0:00:10.6]} 35. Ra1 {[%clk 0:00:02.1]} 35... b5 {[%clk 0:00:04.2]} 36. Rxa3+
{[%clk 0:00:01.8]} 36... Kb6 {[%clk 0:00:02.9]} 37. Be3+ {[%clk 0:00:02.4]}
37... Kc7 {[%clk 0:00:03]} 38. Ra7+ {[%clk 0:00:02.9]} 38... Kd8 {[%clk
0:00:03.4]} 39. Bb6+ {[%clk 0:00:02.1]} 39... Ke8 {[%clk 0:00:02.8]} 40. e6
{[%clk 0:00:01.9]} 1-0

[Event "*** SCC Grand Prix: Titled Tuesday Blitz"]
[Site "Chess.com"]
[Date "2020.10.06"]
[Round "2"]
[White "Larina_Marija"]
[Black "AlexSuv"]
[Result "1-0"]
[WhiteElo "2198"]
[BlackElo "2510"]
[TimeControl "180+1"]
[EndTime "10:18:20 PDT"]
[Termination "Larina_Marija won on time"]

1. e4 {[%clk 0:03:00]} 1... c5 {[%clk 0:02:59.5]} 2. Nc3 {[%clk 0:02:59.7]} 2...
e6 {[%clk 0:02:58.8]} 3. Nf3 {[%clk 0:02:54]} 3... Nc6 {[%clk 0:02:59.3]} 4. d4
{[%clk 0:02:52.7]} 4... cxd4 {[%clk 0:03:00.2]} 5. Nxd4 {[%clk 0:02:53.6]} 5...
a6 {[%clk 0:03:00.9]} 6. g3 {[%clk 0:02:53.4]} 6... Qc7 {[%clk 0:03:00.8]} 7.
Bg2 {[%clk 0:02:53.7]} 7... Nf6 {[%clk 0:03:00.4]} 8. O-O {[%clk 0:02:54]} 8...
Nxd4 {[%clk 0:03:00.5]} 9. Qxd4 {[%clk 0:02:53.9]} 9... Bc5 {[%clk 0:03:00.9]}
10. Qd1 {[%clk 0:02:47.9]} 10... d6 {[%clk 0:02:35.3]} 11. Bf4 {[%clk
0:02:41.4]} 11... h6 {[%clk 0:02:32.8]} 12. Na4 {[%clk 0:02:33.4]} 12... e5
{[%clk 0:02:31.7]} 13. Nxc5 {[%clk 0:02:28.9]} 13... dxc5 {[%clk 0:02:32.6]} 14.
Bd2 {[%clk 0:02:21.6]} 14... O-O {[%clk 0:02:33.1]} 15. Bc3 {[%clk 0:02:15.6]}
15... c4 {[%clk 0:02:14.6]} 16. Qf3 {[%clk 0:01:58.7]} 16... Bg4 {[%clk
0:02:02.8]} 17. Qe3 {[%clk 0:01:58.1]} 17... Rad8 {[%clk 0:01:56]} 18. f3 {[%clk
0:01:57.6]} 18... Bc8 {[%clk 0:01:52.8]} 19. Rfd1 {[%clk 0:01:55.1]} 19... b5
{[%clk 0:01:44.5]} 20. a3 {[%clk 0:01:53.9]} 20... Nh7 {[%clk 0:01:39.4]} 21.
Bb4 {[%clk 0:01:52.6]} 21... Rfe8 {[%clk 0:01:38]} 22. Qc5 {[%clk 0:01:24.7]}
22... Qxc5+ {[%clk 0:01:32.2]} 23. Bxc5 {[%clk 0:01:25.6]} 23... Ng5 {[%clk
0:01:32.5]} 24. Kf2 {[%clk 0:01:19.8]} 24... Bb7 {[%clk 0:01:13.1]} 25. Bb6
{[%clk 0:01:19.2]} 25... Rxd1 {[%clk 0:01:01.6]} 26. Rxd1 {[%clk 0:01:20.1]}
26... Bc8 {[%clk 0:01:02.2]} 27. Rd6 {[%clk 0:01:12]} 27... Ne6 {[%clk 0:00:46]}
28. Bf1 {[%clk 0:01:02.4]} 28... Kf8 {[%clk 0:00:40.7]} 29. a4 {[%clk 0:00:56]}
29... Ke7 {[%clk 0:00:37.5]} 30. Rd5 {[%clk 0:00:55.1]} 30... Bb7 {[%clk
0:00:31.1]} 31. Rxe5 {[%clk 0:00:54.6]} 31... Bc6 {[%clk 0:00:27.6]} 32. Rh5
{[%clk 0:00:50]} 32... Rb8 {[%clk 0:00:24.9]} 33. a5 {[%clk 0:00:47.6]} 33...
Rb7 {[%clk 0:00:21.7]} 34. Ke3 {[%clk 0:00:43.5]} 34... Rd7 {[%clk 0:00:20.7]}
35. Be2 {[%clk 0:00:42.5]} 35... f6 {[%clk 0:00:20.3]} 36. f4 {[%clk 0:00:41.3]}
36... Kf7 {[%clk 0:00:19.3]} 37. Bg4 {[%clk 0:00:37.9]} 37... Re7 {[%clk
0:00:19.4]} 38. e5 {[%clk 0:00:36]} 38... Nf8 {[%clk 0:00:15.3]} 39. Kf2 {[%clk
0:00:32.9]} 39... Ng6 {[%clk 0:00:13.7]} 40. e6+ {[%clk 0:00:30.6]} 40... Kf8
{[%clk 0:00:13]} 41. Bc5 {[%clk 0:00:30.4]} 41... Ke8 {[%clk 0:00:06.8]} 42.
Bxe7 {[%clk 0:00:29.7]} 42... Kxe7 {[%clk 0:00:07.4]} 43. Rc5 {[%clk 0:00:29.5]}
43... Kd6 {[%clk 0:00:07.6]} 44. Rh5 {[%clk 0:00:28]} 44... Ne7 {[%clk 0:00:08]}
45. f5 {[%clk 0:00:26.3]} 45... Be8 {[%clk 0:00:08]} 46. Rh4 {[%clk 0:00:25.2]}
46... Ke5 {[%clk 0:00:07.4]} 47. Bh3 {[%clk 0:00:23.1]} 47... Nd5 {[%clk
0:00:05.2]} 48. Rg4 {[%clk 0:00:20.5]} 1-0

[Event "*** SCC Grand Prix: Titled Tuesday Blitz"]
[Site "Chess.com"]
[Date "2020.10.06"]
[Round "2"]
[White "mirceaparligras"]
[Black "Fischerev7"]
[Result "1-0"]
[WhiteElo "2663"]
[BlackElo "2342"]
[TimeControl "180+1"]
[EndTime "10:18:23 PDT"]
[Termination "mirceaparligras won on time"]

1. d4 {[%clk 0:03:00.9]} 1... Nf6 {[%clk 0:02:59.2]} 2. c4 {[%clk 0:03:00.6]}
2... e6 {[%clk 0:02:58.7]} 3. Nf3 {[%clk 0:02:59.6]} 3... Bb4+ {[%clk
0:02:57.8]} 4. Bd2 {[%clk 0:02:58.7]} 4... a5 {[%clk 0:02:57.8]} 5. a3 {[%clk
0:02:56.2]} 5... Be7 {[%clk 0:02:55.5]} 6. Nc3 {[%clk 0:02:53.3]} 6... d5 {[%clk
0:02:54.8]} 7. Bf4 {[%clk 0:02:47.3]} 7... O-O {[%clk 0:02:53.2]} 8. e3 {[%clk
0:02:47]} 8... b6 {[%clk 0:02:47.8]} 9. Bd3 {[%clk 0:02:35.3]} 9... dxc4 {[%clk
0:02:47.1]} 10. Bxc4 {[%clk 0:02:35.3]} 10... Bb7 {[%clk 0:02:46.1]} 11. O-O
{[%clk 0:02:34.1]} 11... c5 {[%clk 0:02:44.9]} 12. Nb5 {[%clk 0:02:18.3]} 12...
Na6 {[%clk 0:02:41.9]} 13. dxc5 {[%clk 0:02:11.3]} 13... Bxc5 {[%clk 0:02:37.1]}
14. Qe2 {[%clk 0:02:07.7]} 14... Nd5 {[%clk 0:02:17.4]} 15. Bg3 {[%clk
0:02:05.2]} 15... Qe7 {[%clk 0:02:01.3]} 16. Rfd1 {[%clk 0:02:02.4]} 16... Rfd8
{[%clk 0:01:41.4]} 17. Rac1 {[%clk 0:01:59.9]} 17... Rac8 {[%clk 0:01:39.2]} 18.
e4 {[%clk 0:01:46.1]} 18... Ndc7 {[%clk 0:01:36.5]} 19. Bh4 {[%clk 0:01:32]}
19... f6 {[%clk 0:01:35.8]} 20. e5 {[%clk 0:01:31.5]} 20... Nxb5 {[%clk
0:01:22.1]} 21. Bxb5 {[%clk 0:01:32.4]} 21... Nc7 {[%clk 0:01:19]} 22. Bc4
{[%clk 0:01:19.8]} 22... Bd5 {[%clk 0:01:07.3]} 23. exf6 {[%clk 0:01:16.9]}
23... gxf6 {[%clk 0:00:57.3]} 24. Ne5 {[%clk 0:01:02.3]} 24... Bxc4 {[%clk
0:00:40.2]} 25. Qxc4 {[%clk 0:00:54.8]} 25... Nd5 {[%clk 0:00:32.5]} 26. Qg4+
{[%clk 0:00:49.3]} 26... Kh8 {[%clk 0:00:28.5]} 27. Qf3 {[%clk 0:00:37.4]} 27...
Rf8 {[%clk 0:00:18.1]} 28. Ng4 {[%clk 0:00:30.5]} 28... Kg7 {[%clk 0:00:08]} 29.
Re1 {[%clk 0:00:26.6]} 29... Qf7 {[%clk 0:00:07.3]} 30. Rcd1 {[%clk 0:00:24.4]}
30... Rce8 {[%clk 0:00:05.8]} 31. Qg3 {[%clk 0:00:22.8]} 31... Qg6 {[%clk
0:00:05.6]} 32. Qf3 {[%clk 0:00:16.9]} 32... f5 {[%clk 0:00:04.4]} 33. Ne5
{[%clk 0:00:16.1]} 33... Qh6 {[%clk 0:00:03.6]} 34. Qg3+ {[%clk 0:00:15.6]}
34... Kh8 {[%clk 0:00:03.8]} 35. Bg5 {[%clk 0:00:15.6]} 35... Qg7 {[%clk
0:00:04]} 36. Qh4 {[%clk 0:00:14.4]} 36... f4 {[%clk 0:00:03.9]} 37. Bh6 {[%clk
0:00:13.4]} 37... Qf6 {[%clk 0:00:02.6]} 38. Bg5 {[%clk 0:00:10.4]} 38... Qg7
{[%clk 0:00:02.6]} 39. Bh6 {[%clk 0:00:09]} 39... Qf6 {[%clk 0:00:02.6]} 40.
Qxf6+ {[%clk 0:00:09.4]} 40... Rxf6 {[%clk 0:00:03.5]} 41. Bg5 {[%clk
0:00:09.8]} 41... Rf5 {[%clk 0:00:03]} 42. Bh4 {[%clk 0:00:08.8]} 42... Rg8
{[%clk 0:00:02.7]} 43. Nf3 {[%clk 0:00:07.6]} 43... Nf6 {[%clk 0:00:02.1]} 44.
Rxe6 {[%clk 0:00:07]} 44... Ng4 {[%clk 0:00:02.2]} 45. h3 {[%clk 0:00:06.4]} 1-0

[Event "*** SCC Grand Prix: Titled Tuesday Blitz"]
[Site "Chess.com"]
[Date "2020.10.06"]
[Round "2"]
[White "tornikesanikidze"]
[Black "rasmussvane"]
[Result "1-0"]
[WhiteElo "2604"]
[BlackElo "2900"]
[TimeControl "180+1"]
[EndTime "10:18:24 PDT"]
[Termination "tornikesanikidze won by resignation"]

1. d4 {[%clk 0:03:00.9]} 1... d5 {[%clk 0:02:59.9]} 2. c4 {[%clk 0:03:00.4]}
2... e6 {[%clk 0:03:00.2]} 3. Nf3 {[%clk 0:03:00.1]} 3... a6 {[%clk 0:03:00.5]}
4. cxd5 {[%clk 0:02:57.7]} 4... exd5 {[%clk 0:03:01.4]} 5. Nc3 {[%clk
0:02:57.5]} 5... Nf6 {[%clk 0:03:01.6]} 6. Bg5 {[%clk 0:02:56.3]} 6... Be6
{[%clk 0:03:02]} 7. e3 {[%clk 0:02:55]} 7... Nbd7 {[%clk 0:03:01]} 8. Bd3 {[%clk
0:02:52.3]} 8... Bd6 {[%clk 0:03:01.2]} 9. Qc2 {[%clk 0:02:49.2]} 9... c6 {[%clk
0:03:01.1]} 10. O-O-O {[%clk 0:02:41.2]} 10... Qc7 {[%clk 0:02:58.9]} 11. Kb1
{[%clk 0:02:37.9]} 11... O-O-O {[%clk 0:02:58.7]} 12. Na4 {[%clk 0:02:32.4]}
12... Kb8 {[%clk 0:02:57.5]} 13. Rc1 {[%clk 0:02:26.8]} 13... Rc8 {[%clk
0:02:57]} 14. Nc5 {[%clk 0:02:20.7]} 14... Qb6 {[%clk 0:02:25.4]} 15. Ka1 {[%clk
0:02:07.8]} 15... h6 {[%clk 0:02:15.1]} 16. Bh4 {[%clk 0:02:05.5]} 16... Ka8
{[%clk 0:02:13.3]} 17. Bg3 {[%clk 0:02:01.8]} 17... Bxg3 {[%clk 0:01:55.3]} 18.
hxg3 {[%clk 0:02:02.7]} 18... Rhe8 {[%clk 0:01:54.5]} 19. Rb1 {[%clk 0:01:52.2]}
19... Nxc5 {[%clk 0:01:51.1]} 20. dxc5 {[%clk 0:01:51.6]} 20... Qc7 {[%clk
0:01:46.9]} 21. Nd4 {[%clk 0:01:49.9]} 21... Nd7 {[%clk 0:01:45.6]} 22. b4
{[%clk 0:01:44.3]} 22... Ne5 {[%clk 0:01:45.7]} 23. a4 {[%clk 0:01:40.9]} 23...
f6 {[%clk 0:01:33.5]} 24. Nxe6 {[%clk 0:01:33.5]} 24... Rxe6 {[%clk 0:01:33.9]}
25. Bf5 {[%clk 0:01:33.2]} 25... Ree8 {[%clk 0:01:31.6]} 26. Bxc8 {[%clk
0:01:32.8]} 26... Rxc8 {[%clk 0:01:32.5]} 27. Qc3 {[%clk 0:01:24.5]} 27... f5
{[%clk 0:01:28.3]} 28. Rh5 {[%clk 0:01:18.5]} 28... Rf8 {[%clk 0:01:26.4]} 29.
Ka2 {[%clk 0:01:14.5]} 29... Nc4 {[%clk 0:01:24.6]} 30. Rh4 {[%clk 0:01:07.3]}
30... g5 {[%clk 0:01:17.1]} 31. Rxh6 {[%clk 0:01:04.1]} 31... f4 {[%clk
0:01:17.3]} 32. gxf4 {[%clk 0:01:01.8]} 32... gxf4 {[%clk 0:01:18.2]} 33. e4
{[%clk 0:00:58]} 33... Qf7 {[%clk 0:01:10.5]} 34. Ka1 {[%clk 0:00:40.4]} 34...
dxe4 {[%clk 0:01:02]} 35. Rh8 {[%clk 0:00:40]} 35... Rxh8 {[%clk 0:00:58.9]} 36.
Qxh8+ {[%clk 0:00:39.2]} 36... Ka7 {[%clk 0:00:59.6]} 37. Rd1 {[%clk 0:00:39.1]}
37... Nd2 {[%clk 0:00:04.8]} 38. Rxd2 {[%clk 0:00:31.7]} 38... Qc4 {[%clk
0:00:03.7]} 39. Qd4 {[%clk 0:00:23.6]} 39... Qc1+ {[%clk 0:00:03.2]} 40. Ka2
{[%clk 0:00:23.4]} 40... e3 {[%clk 0:00:01.7]} 41. fxe3 {[%clk 0:00:23.2]} 41...
fxe3 {[%clk 0:00:02.3]} 42. Qxe3 {[%clk 0:00:23.1]} 42... Qc4+ {[%clk
0:00:01.5]} 43. Ka3 {[%clk 0:00:22.6]} 43... Qc1+ {[%clk 0:00:01.3]} 44. Kb3
{[%clk 0:00:20.5]} 44... Qb1+ {[%clk 0:00:01.6]} 45. Rb2 {[%clk 0:00:19.6]}
45... Qd1+ {[%clk 0:00:02]} 46. Ka3 {[%clk 0:00:17.1]} 46... Qa1+ {[%clk
0:00:02.6]} 47. Ra2 {[%clk 0:00:17.1]} 47... Qd1 {[%clk 0:00:03]} 48. Qc3 {[%clk
0:00:14.7]} 48... Qg4 {[%clk 0:00:02.9]} 49. g3 {[%clk 0:00:14.5]} 49... Qe4
{[%clk 0:00:03]} 50. Rb2 {[%clk 0:00:14.3]} 50... Qe1 {[%clk 0:00:03.1]} 51.
Qxe1 {[%clk 0:00:13.5]} 1-0

[Event "*** SCC Grand Prix: Titled Tuesday Blitz"]
[Site "Chess.com"]
[Date "2020.10.06"]
[Round "2"]
[White "vinniethepooh"]
[Black "sergoy"]
[Result "0-1"]
[WhiteElo "2569"]
[BlackElo "2869"]
[TimeControl "180+1"]
[EndTime "10:18:24 PDT"]
[Termination "sergoy won by resignation"]

1. d4 {[%clk 0:03:00.9]} 1... Nf6 {[%clk 0:02:51.5]} 2. c4 {[%clk 0:03:01.5]}
2... e6 {[%clk 0:02:51.7]} 3. Nc3 {[%clk 0:03:01.9]} 3... Bb4 {[%clk 0:02:51.8]}
4. f3 {[%clk 0:03:02.5]} 4... c5 {[%clk 0:02:50.9]} 5. d5 {[%clk 0:03:02.4]}
5... d6 {[%clk 0:02:50.1]} 6. e4 {[%clk 0:03:02.4]} 6... b5 {[%clk 0:02:50.6]}
7. Bd3 {[%clk 0:03:01.9]} 7... exd5 {[%clk 0:02:49.2]} 8. cxd5 {[%clk
0:03:01.6]} 8... O-O {[%clk 0:02:31.6]} 9. Ne2 {[%clk 0:02:57.7]} 9... c4 {[%clk
0:02:19.5]} 10. Bc2 {[%clk 0:02:57.1]} 10... a6 {[%clk 0:02:17.8]} 11. O-O
{[%clk 0:02:54.1]} 11... Bc5+ {[%clk 0:02:16.2]} 12. Kh1 {[%clk 0:02:53.7]}
12... Nbd7 {[%clk 0:02:16.4]} 13. Nd4 {[%clk 0:02:31]} 13... Ne5 {[%clk
0:02:03]} 14. Nce2 {[%clk 0:02:19.9]} 14... Bd7 {[%clk 0:01:57.5]} 15. Bg5
{[%clk 0:02:15.3]} 15... h6 {[%clk 0:01:52.9]} 16. Bh4 {[%clk 0:02:14.3]} 16...
Ng6 {[%clk 0:01:52.4]} 17. Bf2 {[%clk 0:02:10.2]} 17... Re8 {[%clk 0:01:45.1]}
18. Qd2 {[%clk 0:02:07.4]} 18... a5 {[%clk 0:01:40.4]} 19. Rad1 {[%clk
0:02:03.6]} 19... b4 {[%clk 0:01:34.5]} 20. Ng3 {[%clk 0:01:53.8]} 20... a4
{[%clk 0:01:18.3]} 21. Ngf5 {[%clk 0:01:49.5]} 21... a3 {[%clk 0:01:14.2]} 22.
b3 {[%clk 0:01:46.9]} 22... c3 {[%clk 0:01:10.7]} 23. Qc1 {[%clk 0:01:47.4]}
23... Bxf5 {[%clk 0:01:10.5]} 24. Nxf5 {[%clk 0:01:33.3]} 24... Bxf2 {[%clk
0:01:10.2]} 25. Rxf2 {[%clk 0:01:29.6]} 25... Ne5 {[%clk 0:01:07.2]} 26. h3
{[%clk 0:01:23.3]} 26... Qb6 {[%clk 0:00:57.4]} 27. Rff1 {[%clk 0:01:13.1]}
27... Nfd7 {[%clk 0:00:54.8]} 28. Qf4 {[%clk 0:01:07.3]} 28... Nf8 {[%clk
0:00:25.4]} 29. Qg3 {[%clk 0:00:58.7]} 29... Neg6 {[%clk 0:00:23.2]} 30. h4
{[%clk 0:00:55.6]} 30... h5 {[%clk 0:00:21.8]} 31. Nxd6 {[%clk 0:00:41.1]} 31...
Qc7 {[%clk 0:00:21.2]} 32. e5 {[%clk 0:00:26.5]} 32... Rxe5 {[%clk 0:00:19.6]}
33. Nc4 {[%clk 0:00:26.5]} 33... Rae8 {[%clk 0:00:19.5]} 34. d6 {[%clk
0:00:24.3]} 34... Qc5 {[%clk 0:00:18.4]} 35. d7 {[%clk 0:00:17]} 35... Rd8
{[%clk 0:00:12.1]} 36. Nxe5 {[%clk 0:00:08.9]} 36... Nxe5 {[%clk 0:00:11.5]} 37.
Qg5 {[%clk 0:00:06.1]} 37... f6 {[%clk 0:00:11.4]} 38. Qxh5 {[%clk 0:00:05.3]}
38... Qe7 {[%clk 0:00:11.2]} 39. Rfe1 {[%clk 0:00:04.3]} 39... Rxd7 {[%clk
0:00:11.5]} 40. Rxd7 {[%clk 0:00:03.8]} 40... Qxd7 {[%clk 0:00:12.4]} 41. f4
{[%clk 0:00:03.8]} 41... Qd2 {[%clk 0:00:13]} 42. Qe2 {[%clk 0:00:02.7]} 42...
Qxf4 {[%clk 0:00:13.2]} 43. Rf1 {[%clk 0:00:01.7]} 43... Qxh4+ {[%clk
0:00:13.1]} 44. Kg1 {[%clk 0:00:02.6]} 44... Ng4 {[%clk 0:00:13.4]} 45. g3
{[%clk 0:00:02.4]} 45... Qxg3+ {[%clk 0:00:13.3]} 46. Qg2 {[%clk 0:00:03.1]}
46... Qxg2+ {[%clk 0:00:13.8]} 47. Kxg2 {[%clk 0:00:04]} 47... Ne3+ {[%clk
0:00:14.6]} 48. Kf2 {[%clk 0:00:04.7]} 48... Nxf1 {[%clk 0:00:15.5]} 49. Kxf1
{[%clk 0:00:04.9]} 49... Ne6 {[%clk 0:00:16.4]} 50. Ke2 {[%clk 0:00:05.5]} 50...
Nd4+ {[%clk 0:00:16.7]} 51. Kd3 {[%clk 0:00:06.2]} 51... Nxc2 {[%clk 0:00:17.6]}
52. Kxc2 {[%clk 0:00:07.1]} 52... f5 {[%clk 0:00:18.5]} 0-1